fUST/lending_fUST_20250227
["ID","MTS","AMOUNT","RATE_DAILY","PERIOD"]
[354666791,1740607839811,-500.0,0.00056709,120]
[354666792,1740607839822,-500.0,0.00056709,120]
[354666793,1740607839833,-500.0,0.00056709,120]
[354666794,1740607839844,-500.0,0.00056709,45]
[354666795,1740607839855,-500.0,0.00056709,120]
[354666796,1740607839867,-246.99,0.00056709,120]
[354666797,1740607839877,-500.0,0.00056709,120]
[354666798,1740607839889,-500.0,0.00056709,120]
[354666799,1740607839900,-500.0,0.00056709,120]
[354666800,1740607839911,-500.0,0.00056709,120]
[354666801,1740607839922,-448.72,0.00056709,3]
[354666802,1740607839932,-500.0,0.00056709,120]
[354666803,1740607839941,-500.0,0.00056709,120]
[354666804,1740607839951,-500.0,0.00056709,120]
[354666806,1740607839960,-500.0,0.00056709,120]
[354666807,1740607839970,-500.0,0.00056709,120]
[354666808,1740607839980,-500.0,0.00056709,120]
[354666810,1740607839989,-500.0,0.00056709,120]
[354666811,1740607840001,-500.0,0.00056709,120]
[354666812,1740607840011,-500.0,0.00056709,120]
[354666813,1740607840021,-500.0,0.00056709,120]
[354666814,1740607840031,-500.0,0.00056709,120]
[354666815,1740607840041,-500.0,0.00056709,120]
[354666816,1740607840051,-500.0,0.00056709,15]
[354666817,1740607840060,-502.64896479,0.00056709,120]
[354666818,1740607840071,-161.66,0.00056709,120]
[354666819,1740607840080,-1512.62,0.00056709,7]
[354666820,1740607840092,-500.0,0.00056709,120]
[354666821,1740607840105,-398.49,0.00056709,120]
[354666822,1740607840115,-500.0,0.00056709,120]
[354666823,1740607840125,-500.0,0.00056709,120]
[354666824,1740607840135,-314.36,0.000568,30]
[354666825,1740607840145,-500.0,0.00056941,120]
[354666826,1740607840155,-10000.0,0.00056942,30]
[354666827,1740607840165,-500.0,0.00056982,120]
[354666829,1740607840175,-500.0,0.00056982,120]
[354666830,1740607840185,-500.0,0.00056982,120]
[354666831,1740607840195,-500.0,0.00056982,120]
[354666832,1740607840205,-500.0,0.00056982,120]
[354666833,1740607840214,-500.0,0.00056983,120]
[354666834,1740607840224,-500.0,0.00056983,120]
[354666835,1740607840234,-500.0,0.00056983,120]
[354666836,1740607840245,-500.0,0.00056983,120]
[354666837,1740607840258,-500.0,0.00056983,120]
[354666838,1740607840267,-500.0,0.00056983,120]
[354666839,1740607840276,-500.0,0.00056983,120]
[354666844,1740607840399,-500.0,0.00056983,120]
[354666846,1740607840409,-184.44,0.00056983,120]
[354666847,1740607840419,-500.0,0.00056983,120]
[354666848,1740607840428,-500.0,0.00056983,120]
[354666849,1740607840437,-267.42,0.00056983,120]
[354666850,1740607840446,-500.0,0.00056983,45]
[354666851,1740607840456,-500.0,0.00056983,120]
[354666852,1740607840465,-500.0,0.00056983,120]
[354666854,1740607840475,-500.0,0.00056983,120]
[354666856,1740607840484,-500.0,0.00056983,120]
[354666857,1740607840494,-500.0,0.00056983,120]
[354666858,1740607840503,-500.0,0.00056983,120]
[354666859,1740607840513,-500.0,0.00056983,120]
[354666860,1740607840523,-500.0,0.00056983,120]
[354666861,1740607840532,-500.0,0.00056983,120]
[354666862,1740607840542,-500.0,0.00056983,120]
[354666863,1740607840552,-500.0,0.00056983,120]
[354666864,1740607840561,-500.0,0.00056983,120]
[354666865,1740607840571,-500.0,0.00056983,120]
[354666866,1740607840580,-500.0,0.00056983,120]
[354666868,1740607840590,-500.0,0.00056983,120]
[354666869,1740607840599,-500.0,0.00056983,120]
[354666870,1740607840609,-500.0,0.00056983,15]
[354666871,1740607840618,-1512.62,0.00056983,7]
[354666872,1740607840628,-500.0,0.00056983,120]
[354666873,1740607840637,-500.0,0.00056983,120]
[354666874,1740607840646,-500.0,0.00056983,120]
[354666875,1740607840656,-170.4,0.00057173,120]
[354666876,1740607840665,-150.5,0.00057183,120]
[354666877,1740607840675,-150.5,0.00057193,120]
[354666878,1740607840685,-302.0,0.00057223,2]
[354666879,1740607840695,-500.0,0.00057256,120]
[354666880,1740607840704,-500.0,0.00057256,120]
[354666881,1740607840714,-500.0,0.00057256,120]
[354666882,1740607840724,-500.0,0.00057256,120]
[354666883,1740607840734,-500.0,0.00057257,120]
[354666884,1740607840744,-500.0,0.00057257,120]
[354666885,1740607840754,-500.0,0.00057257,120]
[354666886,1740607840763,-500.0,0.00057257,120]
[354666887,1740607840773,-500.0,0.00057257,120]
[354666888,1740607840783,-500.0,0.00057257,120]
[354666889,1740607840793,-500.0,0.00057257,120]
[354666890,1740607840802,-500.0,0.00057257,120]
[354666891,1740607840812,-500.0,0.00057257,120]
[354666892,1740607840821,-500.0,0.00057257,120]
[354666893,1740607840831,-500.0,0.00057257,45]
[354666894,1740607840840,-424.42217427,0.00057257,120]
[354666895,1740607840850,-500.0,0.00057257,120]
[354666896,1740607840859,-500.0,0.00057257,120]
[354666897,1740607840869,-500.0,0.00057257,120]
[354666898,1740607840879,-500.0,0.00057257,120]
[354666899,1740607840889,-500.0,0.00057257,120]
[354666900,1740607840899,-500.0,0.00057257,120]
[354666901,1740607840909,-500.0,0.00057257,120]
[354666902,1740607840919,-500.0,0.00057257,120]
[354666903,1740607840928,-500.0,0.00057257,120]
[354666904,1740607840938,-500.0,0.00057257,120]
[354666905,1740607840947,-500.0,0.00057257,120]
[354666906,1740607840956,-505.49906312,0.00057257,120]
[354666907,1740607840966,-500.0,0.00057257,120]
[354666908,1740607840975,-500.0,0.00057257,15]
[354666909,1740607840984,-1512.62,0.00057257,7]
[354666910,1740607840994,-242.27,0.00057257,120]
[354666911,1740607841004,-500.0,0.00057257,120]
[354666912,1740607841014,-500.0,0.00057257,120]
[354666913,1740607841023,-500.0,0.0005753,120]
[354666914,1740607841032,-500.0,0.0005753,120]
[354666915,1740607841042,-420.32655942,0.0005753,120]
[354666916,1740607841051,-208.98,0.0005753,120]
[354666917,1740607841061,-500.0,0.0005753,120]
[354666918,1740607841071,-500.0,0.00057531,120]
[354666919,1740607841081,-500.0,0.00057531,120]
[354666920,1740607841091,-500.0,0.00057531,120]
[354666921,1740607841106,-500.0,0.00057531,120]
[354666922,1740607841116,-500.0,0.00057531,120]
[354666923,1740607841125,-500.0,0.00057531,120]
[354666924,1740607841135,-500.0,0.00057531,120]
[354666925,1740607841144,-500.0,0.00057531,120]
[354666926,1740607841153,-500.0,0.00057531,120]
[354666927,1740607841163,-255.24,0.00057531,120]
[354666928,1740607841172,-500.0,0.00057531,45]
[354666929,1740607841182,-500.0,0.00057531,120]
[354666930,1740607841191,-500.0,0.00057531,120]
[354666931,1740607841201,-500.0,0.00057531,120]
[354666932,1740607841210,-265.26645994,0.00057531,120]
[354666933,1740607841219,-500.0,0.00057531,120]
[354666934,1740607841229,-500.0,0.00057531,120]
[354666935,1740607841238,-500.0,0.00057531,120]
[354666936,1740607841250,-500.0,0.00057531,120]
[354666937,1740607841259,-500.0,0.00057531,120]
[354666938,1740607841268,-500.0,0.00057531,120]
[354666939,1740607841278,-500.0,0.00057531,120]
[354666940,1740607841287,-500.0,0.00057531,15]
[354666941,1740607841296,-1512.62,0.00057531,7]
[354666942,1740607841306,-500.0,0.00057531,120]
[354666943,1740607841315,-500.0,0.00057771,2]
[354666944,1740607841324,-500.0,0.00057804,120]
[354666945,1740607841334,-500.0,0.00057804,120]
[354666946,1740607841344,-500.0,0.00057805,120]
[354666947,1740607841353,-423.49051717,0.00057805,120]
[354666948,1740607841363,-365.58,0.00057805,120]
[354666949,1740607841372,-500.0,0.00057805,120]
[354666950,1740607841381,-500.0,0.00057805,120]
[354666951,1740607841391,-500.0,0.00057805,120]
[354666952,1740607841400,-500.0,0.00057805,120]
[354666953,1740607841410,-500.0,0.00057805,120]
[354666954,1740607841419,-500.0,0.00057805,120]
[354666955,1740607841428,-500.0,0.00057805,45]
[354666956,1740607841437,-500.0,0.00057805,120]
[354666957,1740607841446,-500.0,0.00057805,120]
[354666958,1740607841455,-500.0,0.00057805,120]
[354666959,1740607841465,-500.0,0.00057805,120]
[354666960,1740607841473,-500.0,0.00057805,120]
[354666961,1740607841482,-500.0,0.00057805,120]
[354666962,1740607841491,-500.0,0.00057805,120]
[354666963,1740607841501,-500.0,0.00057805,120]
[354666964,1740607841510,-500.0,0.00057805,120]
[354666965,1740607841519,-500.0,0.00057805,15]
[354666966,1740607841528,-1512.62,0.00057805,7]
[354666967,1740607841537,-500.0,0.00057805,120]
[354666968,1740607841547,-500.0,0.00058078,120]
[354666969,1740607841556,-500.0,0.00058078,120]
[354666970,1740607841566,-500.0,0.00058079,120]
[354666971,1740607841581,-500.0,0.00058079,120]
[354666972,1740607841590,-500.0,0.00058079,120]
[354666973,1740607841599,-500.0,0.00058079,120]
[354666974,1740607841609,-500.0,0.00058079,120]
[354666975,1740607841618,-500.0,0.00058079,120]
[354666976,1740607841628,-500.0,0.00058079,120]
[354666977,1740607841638,-500.0,0.00058079,45]
[354666978,1740607841647,-500.0,0.00058079,120]
[354666979,1740607841656,-500.0,0.00058079,120]
[354666980,1740607841665,-500.0,0.00058079,120]
[354666981,1740607841675,-500.0,0.00058079,120]
[354666982,1740607841685,-500.0,0.00058079,120]
[354666983,1740607841695,-412.72,0.00058079,120]
[354666984,1740607841705,-500.0,0.00058079,120]
[354666985,1740607841715,-258.39603602,0.00058079,120]
[354666986,1740607841724,-500.0,0.00058079,15]
[354666987,1740607841734,-1512.62,0.00058079,7]
[354666988,1740607841744,-500.0,0.00058079,120]
[354666989,1740607841754,-500.0,0.00058352,120]
[354666990,1740607841763,-500.0,0.00058352,120]
[354666991,1740607841773,-500.0,0.00058353,120]
[354666992,1740607841783,-500.0,0.00058353,120]
[354666993,1740607841792,-429.83535213,0.00058353,120]
[354666994,1740607841801,-500.0,0.00058353,120]
[354666995,1740607841811,-500.0,0.00058353,120]
[354666996,1740607841820,-500.0,0.00058353,120]
[354666997,1740607841829,-500.0,0.00058353,120]
[354666998,1740607841840,-497.51042542,0.00058353,45]
[354666999,1740607841850,-500.0,0.00058353,120]
[354667000,1740607841860,-500.0,0.00058353,120]
[354667001,1740607841870,-500.0,0.00058353,120]
[354667002,1740607841879,-500.0,0.00058353,120]
[354667003,1740607841889,-500.0,0.00058353,120]
[354667004,1740607841898,-500.0,0.00058353,15]
[354667005,1740607841908,-1512.62,0.00058353,7]
[354667006,1740607841917,-500.0,0.00058353,120]
[354667007,1740607841927,-500.0,0.00058626,120]
[354667008,1740607841935,-500.0,0.00058626,120]
[354667009,1740607841945,-500.0,0.00058627,120]
[354667010,1740607841954,-500.0,0.00058627,120]
[354667011,1740607841963,-500.0,0.00058627,120]
[354667012,1740607841972,-500.0,0.00058627,120]
[354667013,1740607841982,-500.0,0.00058627,120]
[354667014,1740607841991,-500.0,0.00058627,15]
[354667015,1740607842002,-1512.62,0.00058627,7]
[354667016,1740607842011,-601.77,0.000589,120]
[354667017,1740607842020,-500.0,0.000589,120]
[354667018,1740607842029,-500.0,0.00058901,120]
[354667019,1740607842039,-500.0,0.00058901,120]
[354667020,1740607842049,-500.0,0.00058901,120]
[354667021,1740607842059,-500.0,0.00058901,120]
[354667022,1740607842068,-500.0,0.00058901,15]
[354667023,1740607842078,-1512.62,0.00058901,7]
[354667024,1740607842088,-500.0,0.00059057,15]
[354667025,1740607842098,-500.0,0.00059174,120]
[354667026,1740607842109,-500.0,0.00059175,120]
[354667027,1740607842119,-500.0,0.00059175,120]
[354667028,1740607842129,-286.46,0.00059175,120]
[354667029,1740607842139,-500.0,0.00059175,15]
[354667030,1740607842148,-1512.62,0.00059175,7]
[354667031,1740607842157,-500.0,0.00059448,120]
[354667032,1740607842166,-500.0,0.00059449,120]
[354667033,1740607842178,-500.0,0.00059449,120]
[354667034,1740607842187,-500.0,0.00059449,15]
[354667035,1740607842196,-1512.62,0.00059449,7]
[354667036,1740607842206,-500.0,0.00059722,120]
[354667037,1740607842215,-500.0,0.00059723,120]
[354667038,1740607842226,-500.0,0.00059723,120]
[354667039,1740607842236,-450.65,0.00059723,15]
[354667040,1740607842247,-1512.62,0.00059723,7]
[354667041,1740607842256,-500.0,0.00059996,120]
[354667042,1740607842266,-500.0,0.00059997,120]
[354667043,1740607842275,-500.0,0.00059997,120]
[354667044,1740607842285,-1512.62,0.00059997,7]
[354667045,1740607842294,-185.76,0.0006027,120]
[354667046,1740607842304,-470.86,0.00060271,120]
[354667047,1740607842313,-618.56,0.00060271,120]
[354667048,1740607842323,-1512.62,0.00060271,7]
[354667049,1740607842332,-1512.62,0.00060545,7]
[354667050,1740607842342,-1999.0,0.00060818,120]
[354667051,1740607842351,-1512.7552,0.00060819,7]
[354667052,1740607842361,-153.62,0.000619,63]
[354667053,1740607842370,-153.62,0.000619,63]
[354667054,1740607842379,-153.62,0.000619,63]
[354667055,1740607842388,-305.37,0.000619,30]
[354667056,1740607842397,-500.0,0.00062465,120]
[354667057,1740607842406,-500.0,0.00062465,120]
[354667058,1740607842416,-500.0,0.00062465,120]
[354667059,1740607842425,-500.0,0.00062465,120]
[354667060,1740607842435,-500.0,0.00062465,120]
[354667061,1740607842444,-500.0,0.00062465,120]
[354667062,1740607842453,-500.0,0.00062465,120]
[354667063,1740607842462,-500.0,0.00062465,120]
[354667064,1740607842471,-500.0,0.00062465,120]
[354667065,1740607842480,-500.0,0.00062465,120]
[354667066,1740607842489,-500.0,0.00062465,120]
[354667067,1740607842499,-500.0,0.00062465,120]
[354667068,1740607842509,-500.0,0.00062465,120]
[354667069,1740607842518,-500.0,0.00062465,120]
[354667070,1740607842527,-185.33275467,0.00062465,120]
[354667071,1740607842536,-500.0,0.00063578,15]
[354667072,1740607842546,-257.87264083,0.00064052,15]
[354667073,1740607842556,-314.46080446,0.00064086,15]
[354667074,1740607842565,-314.36,0.000641,30]
[354667075,1740607842574,-152.0,0.00065753,120]
[354667076,1740607842584,-1999.0,0.00066297,120]
[354667077,1740607842593,-154.0,0.00067,120]
[354667078,1740607842603,-153.0,0.0006833,60]
[354667080,1740607842611,-153.0,0.0006833,60]
[354667081,1740607842621,-153.0,0.0006833,60]
[354667083,1740607842630,-153.0,0.0006833,60]
[354667085,1740607842639,-153.0,0.0006833,60]
[354667087,1740607842649,-306.0,0.0006833,60]
[354667089,1740607842658,-500.0,0.00068491,120]
[354667091,1740607842668,-500.0,0.00068491,120]
[354667092,1740607842677,-157.46,0.00068492,120]
[354667093,1740607842686,-500.0,0.00068492,120]
[354667094,1740607842696,-500.0,0.00068492,120]
[354667095,1740607842706,-500.0,0.00068492,120]
[354667096,1740607842716,-500.0,0.00068492,120]
[354667097,1740607842725,-500.0,0.00068492,120]
[354667098,1740607842735,-500.0,0.00068492,120]
[354667099,1740607842745,-500.0,0.00068492,120]
[354667100,1740607842754,-500.0,0.00068492,120]
[354667101,1740607842764,-500.0,0.00068492,120]
[354667102,1740607842773,-165.87544267,0.00068492,120]
[354667103,1740607842782,-500.0,0.00068492,120]
[354667104,1740607842791,-500.0,0.00068492,120]
[354667105,1740607842801,-500.0,0.00068492,120]
[354667106,1740607842810,-500.0,0.00068492,120]
[354667107,1740607842819,-500.0,0.00068492,120]
[354667108,1740607842828,-500.0,0.00068492,14]
[354667109,1740607842837,-500.0,0.00068492,120]
[354667110,1740607842847,-334.87531421,0.00068492,120]
[354667111,1740607842856,-500.0,0.00068492,120]
[354667112,1740607842865,-500.0,0.00068492,120]
[354667113,1740607842875,-500.0,0.00068492,120]
[354667115,1740607842884,-610.36727448,0.00068492,120]
[354667118,1740607842894,-500.0,0.00068492,120]
[354667121,1740607842903,-500.0,0.00068492,120]
[354667123,1740607842912,-500.0,0.00068492,120]
[354667125,1740607842922,-500.0,0.00068492,120]
[354667127,1740607842931,-500.0,0.00068492,120]
[354667129,1740607842940,-500.0,0.00068492,120]
[354667130,1740607842950,-500.0,0.00068492,120]
[354667131,1740607842959,-500.0,0.00068492,120]
[354667132,1740607842968,-500.0,0.00068492,120]
[354667133,1740607842978,-500.0,0.00068492,120]
[354667134,1740607842987,-500.0,0.00068492,120]
[354667135,1740607842999,-500.0,0.00068492,120]
[354667136,1740607843008,-303.42940542,0.00068492,120]
[354667137,1740607843018,-267.15976801,0.00068492,120]
[354667138,1740607843027,-500.0,0.00068492,120]
[354667139,1740607843037,-500.0,0.00068492,120]
[354667140,1740607843047,-537.00279411,0.00068492,120]
[354667141,1740607843057,-500.0,0.00068492,120]
[354667142,1740607843066,-561.90595037,0.00068492,120]
[354667143,1740607843076,-500.0,0.00068492,120]
[354667144,1740607843085,-500.0,0.00068492,120]
[354667145,1740607843096,-500.0,0.00068492,120]
[354667146,1740607843107,-500.0,0.00068492,120]
[354667147,1740607843116,-500.0,0.00068492,120]
[354667148,1740607843126,-506.74997958,0.00068492,120]
[354667149,1740607843135,-500.0,0.00068492,30]
[354667150,1740607843144,-500.0,0.00068492,120]
[354667151,1740607843154,-476.46749049,0.00068492,120]
[354667152,1740607843163,-500.43442574,0.00068492,120]
[354667153,1740607843172,-500.0,0.00068492,120]
[354667154,1740607843181,-500.0,0.00068492,120]
[354667155,1740607843190,-501.44079961,0.00068492,120]
[354667156,1740607843199,-500.0,0.00068492,120]
[354667157,1740607843209,-500.0,0.00068492,120]
[354667158,1740607843217,-500.0,0.00068492,120]
[354667159,1740607843227,-298.05208723,0.00068493,60]
[354667160,1740607843237,-500.0,0.00068493,120]
[354667161,1740607843337,-500.0,0.00068493,120]
[354667162,1740607843359,-507.7847035,0.00068493,120]
[354667163,1740607843369,-500.0,0.00068766,120]
[354667164,1740607843378,-500.0,0.00068766,120]
[354667165,1740607843387,-500.0,0.00068766,120]
[354667166,1740607843397,-501.55429017,0.00068766,120]
[354667167,1740607843406,-500.0,0.00068766,120]
[354667168,1740607843416,-500.0,0.00068766,120]
[354667169,1740607843425,-500.0,0.00068766,120]
[354667170,1740607843435,-500.0,0.00068766,14]
[354667171,1740607843444,-500.0,0.00068766,120]
[354667172,1740607843454,-500.0,0.00068766,120]
[354667173,1740607843463,-500.0,0.00068766,120]
[354667174,1740607843473,-500.0,0.00068766,120]
[354667175,1740607843482,-500.0,0.00068766,120]
[354667176,1740607843491,-264.84377771,0.00068766,120]
[354667177,1740607843500,-500.0,0.00068766,120]
[354667178,1740607843509,-500.0,0.00068766,120]
[354667179,1740607843518,-500.0,0.00068766,120]
[354667180,1740607843528,-500.0,0.00068766,120]
[354667181,1740607843537,-516.04404404,0.0006904,120]
[354667182,1740607843546,-290.47854426,0.0006904,120]
[354667183,1740607843555,-500.0,0.0006904,120]
[354667184,1740607843565,-500.0,0.0006904,120]
[354667185,1740607843575,-500.0,0.0006904,120]
[354667186,1740607843583,-500.0,0.0006904,120]
[354667187,1740607843593,-500.0,0.0006904,120]
[354667188,1740607843603,-500.0,0.0006904,120]
[354667189,1740607843613,-500.0,0.0006904,120]
[354667190,1740607843622,-500.0,0.0006904,120]
[354667191,1740607843632,-500.0,0.00069314,120]
[354667192,1740607843641,-500.0,0.00069314,120]
[354667193,1740607843651,-319.63908157,0.00069314,120]
[354667194,1740607843660,-500.0,0.00069586,120]
[354667195,1740607843670,-152.43,0.00069588,120]
[354667196,1740607843679,-154.8760086,0.00071086,60]
[354667197,1740607843689,-1999.0,0.00071776,120]
[354667198,1740607843698,-305.37,0.000732,30]
[354667199,1740607843707,-187.06525701,0.000743,120]
[354667200,1740607843717,-187.06,0.000743,120]
[354667201,1740607843727,-195.07948824,0.000743,120]
[354667202,1740607843736,-195.07,0.000743,120]
[354667203,1740607843746,-459574.96390231,0.000744,30]
[354667204,1740607843841,-1685.8711844,0.000744,30]
[354667205,1740607843860,-153.85242043,0.00055339,120]
[354667206,1740607843870,-38739.16491329,0.000744,30]
[354667207,1740607843879,-314.36,0.000748,30]
[354667208,1740607843888,-2767.28245197,0.0007655,30]
[354667209,1740607843897,-500.0,0.00076712,120]
[354667210,1740607843906,-500.0,0.00076712,120]
[354667211,1740607843915,-500.0,0.00076712,120]
[354667212,1740607843925,-500.0,0.00076712,120]
[354667213,1740607843934,-500.0,0.00076712,120]
[354667214,1740607843943,-500.0,0.00076712,120]
[354667215,1740607843952,-500.0,0.00076712,120]
[354667216,1740607843962,-500.0,0.00076712,120]
[354667217,1740607843971,-242.08,0.00076712,120]
[354667218,1740607843981,-1999.0,0.00077256,120]
[354667219,1740607843990,-248.86683193,0.00079999,120]
[354667220,1740607844000,-500.0,0.00079999,31]
[354667221,1740607844009,-500.0,0.00079999,120]
[354667222,1740607844018,-203.95916211,0.00079999,31]
[354667223,1740607844027,-441.72644289,0.00079999,120]
[354667224,1740607844037,-500.0,0.00079999,120]
[354667225,1740607844046,-500.0,0.00079999,120]
[354667226,1740607844056,-1999.0,0.00082735,120]
[354667227,1740607844066,-179.92,0.00088215,120]
[354667228,1740607844075,-3000.0,0.000889,120]
[354667229,1740607844084,-500.0,0.00089369,14]
[354667231,1740607844094,-500.0,0.00089369,14]
[354667233,1740607844108,-151.0,0.000894,43]
[354667234,1740607844118,-151.0,0.000937,43]
[354667236,1740607844128,-151.0,0.000938,45]
[354667238,1740607844138,-1000.0,0.00094849,14]
[354667239,1740607844147,-1000.0,0.00094849,14]
[354667240,1740607844157,-2767.28245197,0.00096647,30]
[354667241,1740607844166,-5000.0,0.000969,120]
[354667242,1740607844176,-534.38,0.0009799,10]
[354667243,1740607844185,-445.32,0.0009799,10]
[354667244,1740607844194,-125115.39009363,0.00098,30]
[354667245,1740607844526,-2487.37380879,0.00098,30]
[354667246,1740607844881,-54.18908075,0.0005479,120]
[354667261,1740607845025,-66.59661038,0.0005479,120]
[354667262,1740607845038,-379.21430887,0.0005479,120]
[354667263,1740607845049,-500.0,0.00055064,120]
[354667264,1740607845059,-500.0,0.00055338,120]
[354667265,1740607845070,-500.0,0.00055339,120]
[354667266,1740607845079,-500.0,0.00055612,120]
[354667267,1740607845089,-230.09050765,0.00055613,120]
[354667268,1740607845105,-274.59706245,0.00055613,120]
[354667269,1740607845115,-500.0,0.00055886,120]
[354667270,1740607845124,-150.0,0.000646,2]
[354667271,1740607845133,-163.81,0.0008,7]
[354667272,1740607845144,-371.1,0.0009799,10]
[354667273,1740607845154,-102676.82610548,0.00098,30]
[354667281,1740607846503,-452.42446246,0.00055339,120]
[354667282,1740607846516,-47.57553754,0.00055339,120]
[354667283,1740607846526,-500.0,0.00055613,120]
[354667284,1740607846536,-500.0,0.00055887,120]
[354667285,1740607846545,-500.0,0.00056161,120]
[354667286,1740607846555,-500.0,0.00056435,120]
[354667287,1740607846565,-500.0,0.00056709,120]
[354667288,1740607846575,-342.978592,0.0006756,60]
[354667289,1740607846733,-214.4522198,0.0006756,60]
[354667290,1740607846743,-25354.95785405,0.00098,30]
[354667291,1740607846757,-16660.00002,0.00098,30]
[354667296,1740607853238,3417.13414672,0.00030001,7]
[354667297,1740607853266,3582.86585328,0.00030001,7]
[354667298,1740607860701,125.61094672,0.00049,120]
[354667299,1740607861332,-150.0,0.00049,120]
[354667300,1740607867960,-150.0,0.00049,120]
[354667301,1740607871779,-150.0,0.00049,120]
[354667302,1740607872303,-150.0,0.00048999,5]
[354667303,1740607873460,-150.0,0.00049,120]
[354667304,1740607874463,-150.0,0.00049,120]
[354667324,1740607925444,-150.0,0.00048999,5]
[354667327,1740607929132,151.0,0.00045,120]
[354667328,1740607929705,-150.0,0.00049,120]
[354667329,1740607930806,-150.0,0.00049,120]
[354667330,1740607932468,-150.0,0.00049,120]
[354667334,1740607962697,1719.199999,0.000563,30]
[354667335,1740607964162,2000.0,0.000563,30]
[354667336,1740607964451,2000.0,0.000563,30]
[354667337,1740607964782,849.599999,0.000563,30]
[354667338,1740607985635,-150.0,0.00049,120]
[354667339,1740607987256,-150.0,0.00049,120]
[354667340,1740607990845,-150.0,0.00049,120]
[354667341,1740607992201,-150.0,0.00049,120]
[354667342,1740608087231,10000.0,0.00052204,30]
[354667343,1740608163550,7000.0,0.00030001,7]
[354667370,1740608325869,30000.0,0.00052249,30]
[354667371,1740608346862,30000.0,0.00052249,30]
[354667372,1740608565395,2000.0,0.00052249,30]
[354667373,1740608565855,1734.199999,0.00052249,30]
[354667374,1740608566204,2000.0,0.00052249,30]
[354667375,1740608566644,2000.0,0.00052249,30]
[354667376,1740608567046,849.599999,0.00052249,30]
[354667377,1740608636880,1000.0,0.00052501,30]
[354667378,1740608704626,398.0,0.00052501,60]
[354667387,1740608747116,-175.0487146,0.00039075,2]
[354667388,1740608747137,-910.47140905,0.00041,8]
[354667389,1740608750090,-87.52859195,0.00041,8]
[354667390,1740608750114,-226.57140805,0.00042,8]
[354667396,1740608839345,-179.33590465,0.00041,8]
[354667397,1740608844068,-315.85315846,0.00041,8]
[354667398,1740608846078,-778.40407809,0.00041,8]
[354667399,1740608846114,-291.35288749,0.00041,8]
[354667400,1740608860765,155.37488579,0.00052501,30]
[354667401,1740608864858,5376.60247679,0.000261,60]
[354667402,1740608883208,202882.68803148,0.00052489,32]
[354667403,1740608904669,4034.57345083,0.00025,60]
[354667404,1740608907751,309568.40894594,0.00052489,120]
[354667405,1740608907857,155.0,0.00018,30]
[354667406,1740608908891,726.70543771,0.00026,120]
[354667407,1740608909287,19962.22333077,0.00052489,32]
[354667408,1740608911467,208.08434325,0.00052489,30]